[Event "*** Titled Tuesday Blitz"]
[Site "Chess.com"]
[Date "2021.02.16"]
[Round "6"]
[White "harlem4brew"]
[Black "Sokoloco"]
[Result "0-1"]
[WhiteElo "2306"]
[BlackElo "2455"]
[TimeControl "180+1"]
[EndTime "11:08:57 PST"]
[Termination "Sokoloco won by checkmate"]

1. e4 {[%clk 0:02:59.5]} 1... g6 {[%clk 0:02:59.2]} 2. Nf3 {[%clk 0:02:58.9]}
2... Bg7 {[%clk 0:02:59.3]} 3. d4 {[%clk 0:02:57.3]} 3... d6 {[%clk 0:02:59.6]}
4. Nc3 {[%clk 0:02:56]} 4... a6 {[%clk 0:02:55.6]} 5. Be3 {[%clk 0:02:56.9]}
5... b5 {[%clk 0:02:55.7]} 6. a3 {[%clk 0:02:55.5]} 6... Bb7 {[%clk 0:02:55.4]}
7. Bd3 {[%clk 0:02:53.9]} 7... Nd7 {[%clk 0:02:55.9]} 8. O-O {[%clk 0:02:53.6]}
8... c5 {[%clk 0:02:56.5]} 9. Qd2 {[%clk 0:02:45.9]} 9... e5 {[%clk 0:02:53.1]}
10. d5 {[%clk 0:02:43.6]} 10... Ne7 {[%clk 0:02:43.8]} 11. Bh6 {[%clk
0:02:42.1]} 11... O-O {[%clk 0:02:43.9]} 12. Bxg7 {[%clk 0:02:41.3]} 12... Kxg7
{[%clk 0:02:44.8]} 13. Qg5 {[%clk 0:02:41.3]} 13... h6 {[%clk 0:02:43.4]} 14.
Qg3 {[%clk 0:02:41.3]} 14... c4 {[%clk 0:02:20.3]} 15. Be2 {[%clk 0:02:39.8]}
15... f5 {[%clk 0:02:20.9]} 16. Nh4 {[%clk 0:02:38.2]} 16... f4 {[%clk
0:02:11.2]} 17. Qh3 {[%clk 0:02:37.3]} 17... Bc8 {[%clk 0:02:03.8]} 18. Bg4
{[%clk 0:02:35.4]} 18... Nc5 {[%clk 0:01:54.8]} 19. Rfe1 {[%clk 0:02:27.9]}
19... g5 {[%clk 0:01:42.7]} 20. Nf5+ {[%clk 0:02:22.1]} 20... Nxf5 {[%clk
0:01:41]} 21. exf5 {[%clk 0:02:22.2]} 21... Qf6 {[%clk 0:01:34.2]} 22. a4 {[%clk
0:02:22]} 22... b4 {[%clk 0:01:30.7]} 23. Ne4 {[%clk 0:02:22.2]} 23... Nxe4
{[%clk 0:01:20.9]} 24. Rxe4 {[%clk 0:02:21.1]} 24... h5 {[%clk 0:01:18.1]} 25.
Bxh5 {[%clk 0:02:01.3]} 25... Bxf5 {[%clk 0:01:15.7]} 26. Qf3 {[%clk 0:02:01.8]}
26... Bxe4 {[%clk 0:01:05.2]} 27. Qxe4 {[%clk 0:02:01.3]} 27... Rac8 {[%clk
0:01:05]} 28. Bg4 {[%clk 0:02:00.6]} 28... Rc5 {[%clk 0:00:59]} 29. Be6 {[%clk
0:01:59.8]} 29... Qg6 {[%clk 0:00:56.6]} 30. Qe2 {[%clk 0:01:59.7]} 30... f3
{[%clk 0:00:48.3]} 31. gxf3 {[%clk 0:01:58.1]} 31... Rf4 {[%clk 0:00:38.4]} 32.
Re1 {[%clk 0:01:36.5]} 32... Qf6 {[%clk 0:00:34.6]} 33. Kg2 {[%clk 0:01:33.7]}
33... Rh4 {[%clk 0:00:25]} 34. Qe3 {[%clk 0:01:30.7]} 34... Qf4 {[%clk
0:00:24.9]} 35. Qxf4 {[%clk 0:01:30.8]} 35... gxf4 {[%clk 0:00:23.5]} 36. Re4
{[%clk 0:01:27.8]} 36... Kf6 {[%clk 0:00:22.5]} 37. Bc8 {[%clk 0:01:27.3]} 37...
a5 {[%clk 0:00:22.3]} 38. Ba6 {[%clk 0:01:26.9]} 38... c3 {[%clk 0:00:21.5]} 39.
bxc3 {[%clk 0:01:24.3]} 39... Rxc3 {[%clk 0:00:19.7]} 40. Bd3 {[%clk 0:01:23.2]}
40... Rc7 {[%clk 0:00:18.8]} 41. Bc4 {[%clk 0:01:21.7]} 41... Rg7+ {[%clk
0:00:17.2]} 42. Kf1 {[%clk 0:01:20]} 42... Rxh2 {[%clk 0:00:16.8]} 43. Bb3
{[%clk 0:01:18.1]} 43... Rh1+ {[%clk 0:00:14.6]} 44. Ke2 {[%clk 0:01:18.2]}
44... Rc7 {[%clk 0:00:13.4]} 45. Kd3 {[%clk 0:01:16.5]} 45... Rc3+ {[%clk
0:00:13.4]} 46. Ke2 {[%clk 0:01:16.7]} 46... Ra1 {[%clk 0:00:13]} 47. Kd2 {[%clk
0:01:13.8]} 47... Rxf3 {[%clk 0:00:13]} 48. Ke2 {[%clk 0:01:12.9]} 48... Rc3
{[%clk 0:00:12.9]} 49. f3 {[%clk 0:01:04.6]} 49... Rh1 {[%clk 0:00:12.6]} 50.
Kf2 {[%clk 0:01:03.7]} 50... Rh2+ {[%clk 0:00:12.8]} 51. Kg1 {[%clk 0:01:03.3]}
51... Rd2 {[%clk 0:00:13]} 52. Re1 {[%clk 0:00:58.7]} 52... Rxf3 {[%clk
0:00:13.3]} 53. Bc4 {[%clk 0:00:56]} 53... Rff2 {[%clk 0:00:10.5]} 54. Bd3
{[%clk 0:00:53.7]} 54... Rg2+ {[%clk 0:00:10.8]} 55. Kh1 {[%clk 0:00:53.9]}
55... Rh2+ {[%clk 0:00:11.4]} 56. Kg1 {[%clk 0:00:54.5]} 56... Rdg2+ {[%clk
0:00:11.9]} 57. Kf1 {[%clk 0:00:55]} 57... Rh1+ {[%clk 0:00:10.1]} 58. Kxg2
{[%clk 0:00:55.9]} 58... Rxe1 {[%clk 0:00:10.7]} 59. Kf3 {[%clk 0:00:56.1]}
59... Ra1 {[%clk 0:00:10.8]} 60. Bb5 {[%clk 0:00:55.2]} 60... Re1 {[%clk
0:00:11.3]} 61. Bd3 {[%clk 0:00:54.5]} 61... Re3+ {[%clk 0:00:12]} 62. Kf2
{[%clk 0:00:54.3]} 62... Kg5 {[%clk 0:00:12.6]} 63. Bh7 {[%clk 0:00:52.5]} 63...
e4 {[%clk 0:00:12.6]} 64. Bg8 {[%clk 0:00:52.1]} 64... Kf6 {[%clk 0:00:13]} 65.
Be6 {[%clk 0:00:52.4]} 65... Ke5 {[%clk 0:00:13.6]} 66. Bd7 {[%clk 0:00:52.7]}
66... Rc3 {[%clk 0:00:14.2]} 67. Bb5 {[%clk 0:00:53.2]} 67... Rxc2+ {[%clk
0:00:14.7]} 68. Kg1 {[%clk 0:00:54]} 68... f3 {[%clk 0:00:14.8]} 69. Bf1 {[%clk
0:00:54.9]} 69... Kf4 {[%clk 0:00:15.1]} 70. Bh3 {[%clk 0:00:54.9]} 70... Kg3
{[%clk 0:00:15.2]} 71. Bf1 {[%clk 0:00:55.4]} 71... Rc1 {[%clk 0:00:14.9]} 72.
Kh1 {[%clk 0:00:55]} 72... Rxf1# {[%clk 0:00:15.5]} 0-1

[Event "*** Titled Tuesday Blitz"]
[Site "Chess.com"]
[Date "2021.02.16"]
[Round "6"]
[White "Tactictic"]
[Black "catzapto"]
[Result "1-0"]
[WhiteElo "2412"]
[BlackElo "2096"]
[TimeControl "180+1"]
[EndTime "11:08:59 PST"]
[Termination "Tactictic won on time"]

1. e4 {[%clk 0:03:00.9]} 1... c5 {[%clk 0:02:45.7]} 2. Nf3 {[%clk 0:02:55.4]}
2... e6 {[%clk 0:02:45.8]} 3. d4 {[%clk 0:02:56]} 3... cxd4 {[%clk 0:02:45.9]}
4. Nxd4 {[%clk 0:02:56.9]} 4... Nf6 {[%clk 0:02:46.2]} 5. Nc3 {[%clk 0:02:56.2]}
5... Bb4 {[%clk 0:02:45.7]} 6. e5 {[%clk 0:02:52.5]} 6... Nd5 {[%clk 0:02:44]}
7. Qg4 {[%clk 0:02:48]} 7... g6 {[%clk 0:02:44.2]} 8. Nb5 {[%clk 0:02:26.1]}
8... a6 {[%clk 0:02:07.4]} 9. Nd6+ {[%clk 0:02:24.8]} 9... Bxd6 {[%clk
0:02:06.7]} 10. exd6 {[%clk 0:02:25.7]} 10... Nxc3 {[%clk 0:02:07]} 11. Qd4
{[%clk 0:02:18.4]} 11... O-O {[%clk 0:02:00.2]} 12. Qxc3 {[%clk 0:02:11.6]}
12... f6 {[%clk 0:01:58.7]} 13. Be3 {[%clk 0:01:48]} 13... Nc6 {[%clk
0:01:56.8]} 14. Be2 {[%clk 0:01:44.7]} 14... Qa5 {[%clk 0:01:52.9]} 15. Qxa5
{[%clk 0:01:39.9]} 15... Nxa5 {[%clk 0:01:51]} 16. O-O {[%clk 0:01:40]} 16... b5
{[%clk 0:01:44.2]} 17. a4 {[%clk 0:01:32.7]} 17... bxa4 {[%clk 0:01:15.6]} 18.
Rxa4 {[%clk 0:01:26.7]} 18... Nc6 {[%clk 0:01:15.6]} 19. b4 {[%clk 0:01:24.7]}
19... Bb7 {[%clk 0:01:14.2]} 20. Rfa1 {[%clk 0:01:15.7]} 20... e5 {[%clk
0:01:05.7]} 21. Bc4+ {[%clk 0:01:08.9]} 21... Kg7 {[%clk 0:01:04.6]} 22. c3
{[%clk 0:01:01.7]} 22... e4 {[%clk 0:00:30.5]} 23. Bxa6 {[%clk 0:01:00]} 23...
Bxa6 {[%clk 0:00:30.3]} 24. Rxa6 {[%clk 0:01:00.9]} 24... Rxa6 {[%clk
0:00:31.2]} 25. Rxa6 {[%clk 0:00:57]} 25... Kf7 {[%clk 0:00:31.1]} 26. b5 {[%clk
0:00:54.4]} 26... Ne5 {[%clk 0:00:22]} 27. b6 {[%clk 0:00:52.4]} 27... Nc4
{[%clk 0:00:18.5]} 28. Bc5 {[%clk 0:00:45.1]} 28... Ke6 {[%clk 0:00:17.4]} 29.
b7 {[%clk 0:00:39]} 29... Rb8 {[%clk 0:00:17.3]} 30. Ra7 {[%clk 0:00:31.6]}
30... Kd5 {[%clk 0:00:16.5]} 31. Bb4 {[%clk 0:00:27.7]} 31... Nxd6 {[%clk
0:00:16.4]} 32. Ra5+ {[%clk 0:00:27.6]} 32... Kc6 {[%clk 0:00:15.6]} 33. Ra6+
{[%clk 0:00:27.8]} 33... Kb5 {[%clk 0:00:12.7]} 34. Rxd6 {[%clk 0:00:28.7]}
34... Rxb7 {[%clk 0:00:12.8]} 35. h4 {[%clk 0:00:28.1]} 35... f5 {[%clk
0:00:11.7]} 36. Rd5+ {[%clk 0:00:27.3]} 36... Kc4 {[%clk 0:00:11.6]} 37. Rd4+
{[%clk 0:00:27.1]} 37... Kb3 {[%clk 0:00:11.6]} 38. g4 {[%clk 0:00:26.6]} 38...
Ra7 {[%clk 0:00:09.4]} 39. h5 {[%clk 0:00:26.1]} 39... Kc2 {[%clk 0:00:08.3]}
40. hxg6 {[%clk 0:00:25.5]} 40... hxg6 {[%clk 0:00:08]} 41. Rd6 {[%clk
0:00:24.9]} 41... f4 {[%clk 0:00:05.2]} 42. Rxg6 {[%clk 0:00:24.2]} 42... e3
{[%clk 0:00:06.1]} 43. fxe3 {[%clk 0:00:20.9]} 43... fxe3 {[%clk 0:00:07]} 44.
Kf1 {[%clk 0:00:21]} 44... Ra1+ {[%clk 0:00:07.5]} 45. Ke2 {[%clk 0:00:21.1]}
45... Rb1 {[%clk 0:00:04.2]} 46. Kxe3 {[%clk 0:00:20.4]} 46... d5 {[%clk
0:00:05.1]} 47. Kd4 {[%clk 0:00:20.5]} 47... Rd1+ {[%clk 0:00:04.5]} 48. Kc5
{[%clk 0:00:21.1]} 48... d4 {[%clk 0:00:04.3]} 49. cxd4 {[%clk 0:00:20.9]} 49...
Kb3 {[%clk 0:00:02.9]} 50. d5 {[%clk 0:00:20.9]} 50... Rc1+ {[%clk 0:00:02.8]}
51. Kb5 {[%clk 0:00:21.1]} 51... Rc4 {[%clk 0:00:02.9]} 52. Be7 {[%clk
0:00:20.8]} 52... Rd4 {[%clk 0:00:02.5]} 53. d6 {[%clk 0:00:21.2]} 53... Rd5+
{[%clk 0:00:01]} 54. Kc6 {[%clk 0:00:21.5]} 1-0

[Event "*** Titled Tuesday Blitz"]
[Site "Chess.com"]
[Date "2021.02.16"]
[Round "6"]
[White "eldur16"]
[Black "Kurkusha"]
[Result "0-1"]
[WhiteElo "2493"]
[BlackElo "2367"]
[TimeControl "180+1"]
[EndTime "11:09:01 PST"]
[Termination "Kurkusha won on time"]

1. Nf3 {[%clk 0:03:00.9]} 1... d5 {[%clk 0:02:59.6]} 2. g3 {[%clk 0:03:00.5]}
2... Nd7 {[%clk 0:02:57.2]} 3. Bg2 {[%clk 0:03:01.4]} 3... Nb6 {[%clk
0:02:57.1]} 4. O-O {[%clk 0:02:59.8]} 4... Bf5 {[%clk 0:02:57.2]} 5. d3 {[%clk
0:02:58.7]} 5... Nf6 {[%clk 0:02:56.7]} 6. Nbd2 {[%clk 0:02:58]} 6... e6 {[%clk
0:02:56.1]} 7. b3 {[%clk 0:02:57]} 7... Be7 {[%clk 0:02:56]} 8. Bb2 {[%clk
0:02:56.8]} 8... h6 {[%clk 0:02:56.4]} 9. Re1 {[%clk 0:02:55.8]} 9... O-O {[%clk
0:02:56.5]} 10. e4 {[%clk 0:02:55.4]} 10... dxe4 {[%clk 0:02:56.1]} 11. dxe4
{[%clk 0:02:54.9]} 11... Bh7 {[%clk 0:02:55.8]} 12. Qe2 {[%clk 0:02:54.3]} 12...
a5 {[%clk 0:02:49.8]} 13. a3 {[%clk 0:02:51.5]} 13... a4 {[%clk 0:02:48.2]} 14.
b4 {[%clk 0:02:50.6]} 14... Qc8 {[%clk 0:02:32.8]} 15. c4 {[%clk 0:02:47.8]}
15... c5 {[%clk 0:02:32]} 16. b5 {[%clk 0:02:47.2]} 16... Rd8 {[%clk 0:02:29.6]}
17. e5 {[%clk 0:02:43.8]} 17... Bd3 {[%clk 0:02:23.2]} 18. Qe3 {[%clk
0:02:43.1]} 18... Nh7 {[%clk 0:02:18.2]} 19. Rac1 {[%clk 0:02:39.7]} 19... Qc7
{[%clk 0:01:59.2]} 20. h4 {[%clk 0:02:37.5]} 20... Rd7 {[%clk 0:01:57.6]} 21.
Qf4 {[%clk 0:02:24.5]} 21... Rad8 {[%clk 0:01:51.8]} 22. Bc3 {[%clk 0:02:22.3]}
22... Nf8 {[%clk 0:01:49]} 23. h5 {[%clk 0:02:16.9]} 23... Nh7 {[%clk
0:01:44.1]} 24. Ba5 {[%clk 0:02:13.2]} 24... Ng5 {[%clk 0:01:40.1]} 25. Nh2
{[%clk 0:02:06.2]} 25... Ra8 {[%clk 0:01:33.3]} 26. Bc3 {[%clk 0:02:01.6]} 26...
Rad8 {[%clk 0:01:14.3]} 27. Ng4 {[%clk 0:01:55.7]} 27... Rd4 {[%clk 0:01:08.4]}
28. Bxd4 {[%clk 0:01:53.4]} 28... Rxd4 {[%clk 0:01:09.3]} 29. Qe3 {[%clk
0:01:48.1]} 29... Nxc4 {[%clk 0:01:00.3]} 30. Nxc4 {[%clk 0:01:47.3]} 30... Bxc4
{[%clk 0:01:00.7]} 31. f4 {[%clk 0:01:37.4]} 31... Nh7 {[%clk 0:00:56.1]} 32.
Bf1 {[%clk 0:01:33.5]} 32... Bxf1 {[%clk 0:00:37.9]} 33. Qxd4 {[%clk 0:01:31.6]}
33... Bxb5 {[%clk 0:00:38.5]} 34. Qe3 {[%clk 0:01:13.8]} 34... c4 {[%clk
0:00:38.4]} 35. Kh2 {[%clk 0:01:12.6]} 35... Bc5 {[%clk 0:00:36.6]} 36. Qd2
{[%clk 0:01:11.1]} 36... Bxa3 {[%clk 0:00:34.4]} 37. Rc2 {[%clk 0:00:39.3]}
37... Bf8 {[%clk 0:00:29.5]} 38. Ne3 {[%clk 0:00:38.1]} 38... Ba6 {[%clk
0:00:23.5]} 39. Rd1 {[%clk 0:00:34.5]} 39... b5 {[%clk 0:00:23.2]} 40. Qd8
{[%clk 0:00:33.3]} 40... Qc5 {[%clk 0:00:22.6]} 41. Qd4 {[%clk 0:00:23.9]} 41...
Qc6 {[%clk 0:00:18.3]} 42. Ng2 {[%clk 0:00:14.3]} 42... Bb7 {[%clk 0:00:18.1]}
43. Qd7 {[%clk 0:00:12.4]} 43... Qf3 {[%clk 0:00:18]} 44. Rd6 {[%clk 0:00:07.3]}
44... Qxh5+ {[%clk 0:00:12.3]} 45. Kg1 {[%clk 0:00:05.9]} 45... Be4 {[%clk
0:00:12.6]} 46. Rf2 {[%clk 0:00:03.5]} 46... c3 {[%clk 0:00:11.7]} 47. Qc8
{[%clk 0:00:03]} 47... c2 {[%clk 0:00:11.6]} 48. Rxc2 {[%clk 0:00:02]} 48...
Bxc2 {[%clk 0:00:10.8]} 49. Qxc2 {[%clk 0:00:01.7]} 49... Bxd6 {[%clk
0:00:10.2]} 50. exd6 {[%clk 0:00:01.5]} 50... Qd5 {[%clk 0:00:10.8]} 0-1

[Event "*** Titled Tuesday Blitz"]
[Site "Chess.com"]
[Date "2021.02.16"]
[Round "6"]
[White "HackingKid98"]
[Black "Zubrrr"]
[Result "0-1"]
[WhiteElo "2467"]
[BlackElo "2636"]
[TimeControl "180+1"]
[EndTime "11:09:02 PST"]
[Termination "Zubrrr won by checkmate"]

1. Nf3 {[%clk 0:03:00.9]} 1... f5 {[%clk 0:02:57.1]} 2. d4 {[%clk 0:03:00.5]}
2... Nf6 {[%clk 0:02:57]} 3. g3 {[%clk 0:02:58.5]} 3... g6 {[%clk 0:02:54.6]} 4.
Bg2 {[%clk 0:02:59.4]} 4... Bg7 {[%clk 0:02:55.2]} 5. O-O {[%clk 0:03:00.3]}
5... O-O {[%clk 0:02:55.7]} 6. Nbd2 {[%clk 0:02:54.9]} 6... d6 {[%clk
0:02:55.3]} 7. Re1 {[%clk 0:02:54.4]} 7... Nc6 {[%clk 0:02:43.7]} 8. e4 {[%clk
0:02:54.1]} 8... e5 {[%clk 0:02:38.6]} 9. dxe5 {[%clk 0:02:44.5]} 9... dxe5
{[%clk 0:02:37.6]} 10. Qe2 {[%clk 0:02:23.5]} 10... f4 {[%clk 0:02:33.6]} 11. c3
{[%clk 0:02:16.1]} 11... Kh8 {[%clk 0:02:29.8]} 12. Nc4 {[%clk 0:02:11.1]} 12...
Nh5 {[%clk 0:02:20.4]} 13. b3 {[%clk 0:02:02.2]} 13... Be6 {[%clk 0:02:18.3]}
14. Ba3 {[%clk 0:02:00.3]} 14... Rf7 {[%clk 0:02:16.1]} 15. Rad1 {[%clk
0:01:29.7]} 15... Qf6 {[%clk 0:02:15.8]} 16. Rd5 {[%clk 0:01:24]} 16... fxg3
{[%clk 0:01:45]} 17. fxg3 {[%clk 0:01:08.8]} 17... Bxd5 {[%clk 0:01:22.4]} 18.
exd5 {[%clk 0:01:09.7]} 18... b5 {[%clk 0:01:20.7]} 19. Ncxe5 {[%clk 0:00:40.1]}
19... Nxe5 {[%clk 0:01:19.3]} 20. Nxe5 {[%clk 0:00:41]} 20... Qxe5 {[%clk
0:01:12.4]} 21. Qxe5 {[%clk 0:00:40.5]} 21... Bxe5 {[%clk 0:01:13.3]} 22. Rxe5
{[%clk 0:00:40.8]} 22... Rd8 {[%clk 0:01:06.9]} 23. c4 {[%clk 0:00:31.1]} 23...
bxc4 {[%clk 0:01:05.2]} 24. bxc4 {[%clk 0:00:32]} 24... Rb8 {[%clk 0:01:02.8]}
25. Bh3 {[%clk 0:00:22.9]} 25... Ng7 {[%clk 0:00:35.8]} 26. c5 {[%clk 0:00:19]}
26... Rf3 {[%clk 0:00:19.2]} 27. Bc1 {[%clk 0:00:10.5]} 27... Rc3 {[%clk
0:00:19.1]} 28. Re1 {[%clk 0:00:09.8]} 28... Rb1 {[%clk 0:00:16.9]} 29. Bd2
{[%clk 0:00:09.3]} 29... Rxe1+ {[%clk 0:00:17]} 30. Bxe1 {[%clk 0:00:10.2]}
30... Rxc5 {[%clk 0:00:17.6]} 31. Bg2 {[%clk 0:00:09.3]} 31... Kg8 {[%clk
0:00:17.5]} 32. Kf2 {[%clk 0:00:07.9]} 32... Rc2+ {[%clk 0:00:17.6]} 33. Kf3
{[%clk 0:00:06.7]} 33... Rxa2 {[%clk 0:00:17.1]} 34. Bb4 {[%clk 0:00:06.9]}
34... Nf5 {[%clk 0:00:15.9]} 35. Bh3 {[%clk 0:00:06.4]} 35... Rxh2 {[%clk
0:00:15.1]} 36. Bg4 {[%clk 0:00:05.8]} 36... h5 {[%clk 0:00:11.2]} 37. Bxf5
{[%clk 0:00:05]} 37... gxf5 {[%clk 0:00:12.1]} 38. Kf4 {[%clk 0:00:05.7]} 38...
Rf2+ {[%clk 0:00:07.1]} 39. Ke5 {[%clk 0:00:05.8]} 39... Kf7 {[%clk 0:00:06.1]}
40. Ba5 {[%clk 0:00:05.8]} 40... Rc2 {[%clk 0:00:05.5]} 41. Kxf5 {[%clk
0:00:05.3]} 41... Rc5 {[%clk 0:00:05.7]} 42. Bb4 {[%clk 0:00:03.7]} 42... Rxd5+
{[%clk 0:00:06]} 43. Ke4 {[%clk 0:00:04]} 43... Ke6 {[%clk 0:00:06.5]} 44. Be1
{[%clk 0:00:01.9]} 44... a5 {[%clk 0:00:06.8]} 45. Bf2 {[%clk 0:00:02.8]} 45...
a4 {[%clk 0:00:07.1]} 46. Kf4 {[%clk 0:00:02.1]} 46... Rf5+ {[%clk 0:00:06.1]}
47. Ke3 {[%clk 0:00:01.3]} 47... Rxf2 {[%clk 0:00:07]} 48. Kxf2 {[%clk
0:00:02.2]} 48... a3 {[%clk 0:00:07.9]} 49. Kg2 {[%clk 0:00:02.8]} 49... a2
{[%clk 0:00:08.8]} 50. Kh3 {[%clk 0:00:03.7]} 50... a1=Q {[%clk 0:00:09.7]} 51.
Kh4 {[%clk 0:00:04.5]} 51... Kf5 {[%clk 0:00:09.4]} 52. Kh3 {[%clk 0:00:03.9]}
52... Qh1# {[%clk 0:00:09.2]} 0-1

[Event "*** Titled Tuesday Blitz"]
[Site "Chess.com"]
[Date "2021.02.16"]
[Round "6"]
[White "JiiHart"]
[Black "TokChess"]
[Result "0-1"]
[WhiteElo "2120"]
[BlackElo "2385"]
[TimeControl "180+1"]
[EndTime "11:09:03 PST"]
[Termination "TokChess won on time"]

1. e4 {[%clk 0:03:00.9]} 1... d6 {[%clk 0:02:58.3]} 2. d4 {[%clk 0:03:00.2]}
2... Nf6 {[%clk 0:02:58.7]} 3. Nc3 {[%clk 0:03:00.4]} 3... Nbd7 {[%clk
0:02:58.4]} 4. Be2 {[%clk 0:02:59.8]} 4... e5 {[%clk 0:02:58.5]} 5. Nf3 {[%clk
0:02:58.4]} 5... Be7 {[%clk 0:02:58.7]} 6. O-O {[%clk 0:02:56.2]} 6... O-O
{[%clk 0:02:58.6]} 7. h3 {[%clk 0:02:53.7]} 7... a6 {[%clk 0:02:56.6]} 8. a4
{[%clk 0:02:52.5]} 8... b6 {[%clk 0:02:56.9]} 9. Be3 {[%clk 0:02:51.3]} 9... Bb7
{[%clk 0:02:57.1]} 10. d5 {[%clk 0:02:46.9]} 10... c6 {[%clk 0:02:54.2]} 11.
dxc6 {[%clk 0:02:34.2]} 11... Bxc6 {[%clk 0:02:55.1]} 12. Bd3 {[%clk 0:02:29.6]}
12... Qc7 {[%clk 0:02:51.1]} 13. Re1 {[%clk 0:02:21.4]} 13... Rfd8 {[%clk
0:02:40.1]} 14. Qe2 {[%clk 0:02:18.7]} 14... Qb7 {[%clk 0:02:36.1]} 15. b4
{[%clk 0:02:07.1]} 15... Nxe4 {[%clk 0:02:25.6]} 16. Nxe4 {[%clk 0:01:31.1]}
16... Bxe4 {[%clk 0:02:26.5]} 17. Ng5 {[%clk 0:01:19.3]} 17... Bxd3 {[%clk
0:02:20.4]} 18. Qxd3 {[%clk 0:01:10.9]} 18... Nf6 {[%clk 0:02:17.8]} 19. Bd2
{[%clk 0:01:02.1]} 19... h6 {[%clk 0:02:11.2]} 20. Ne4 {[%clk 0:01:00.5]} 20...
d5 {[%clk 0:02:06.2]} 21. Ng3 {[%clk 0:00:57.5]} 21... e4 {[%clk 0:02:04]} 22.
Qd4 {[%clk 0:00:57.6]} 22... Bf8 {[%clk 0:01:27.5]} 23. Nf5 {[%clk 0:00:54.8]}
23... Qc6 {[%clk 0:01:21.1]} 24. b5 {[%clk 0:00:46]} 24... Qe6 {[%clk
0:01:16.4]} 25. g4 {[%clk 0:00:33.4]} 25... Bc5 {[%clk 0:01:13.2]} 26. Qb2
{[%clk 0:00:19.8]} 26... a5 {[%clk 0:01:07.1]} 27. Bc3 {[%clk 0:00:19.6]} 27...
Bf8 {[%clk 0:00:39.9]} 28. Rad1 {[%clk 0:00:17.9]} 28... Rac8 {[%clk 0:00:36.8]}
29. Bxf6 {[%clk 0:00:16.4]} 29... Qxf6 {[%clk 0:00:34]} 30. Qxf6 {[%clk
0:00:15.5]} 30... gxf6 {[%clk 0:00:34.9]} 31. Ne3 {[%clk 0:00:14.8]} 31... d4
{[%clk 0:00:17.1]} 32. Nf5 {[%clk 0:00:14.6]} 32... Rxc2 {[%clk 0:00:14.2]} 33.
Rxe4 {[%clk 0:00:14.5]} 33... d3 {[%clk 0:00:12.5]} 34. Re3 {[%clk 0:00:12.5]}
34... d2 {[%clk 0:00:12.3]} 35. Kf1 {[%clk 0:00:10.2]} 35... Bc5 {[%clk
0:00:11.2]} 36. Rb3 {[%clk 0:00:06.9]} 36... Rc1 {[%clk 0:00:09.9]} 37. Ke2
{[%clk 0:00:06.8]} 37... Re8+ {[%clk 0:00:10.3]} 38. Ne3 {[%clk 0:00:07]} 38...
Bxe3 {[%clk 0:00:09.1]} 39. fxe3 {[%clk 0:00:07.4]} 39... Rc4 {[%clk 0:00:07.4]}
40. Rxd2 {[%clk 0:00:07]} 40... Rxa4 {[%clk 0:00:06.8]} 41. Rbd3 {[%clk
0:00:07.2]} 41... Rb4 {[%clk 0:00:06.6]} 42. Rd5 {[%clk 0:00:07.1]} 42... Re5
{[%clk 0:00:05.8]} 43. Rxe5 {[%clk 0:00:05.8]} 43... fxe5 {[%clk 0:00:06.7]} 44.
Rd5 {[%clk 0:00:05]} 44... f6 {[%clk 0:00:06.7]} 45. Kd3 {[%clk 0:00:04.4]}
45... Kg7 {[%clk 0:00:06.1]} 46. Kc3 {[%clk 0:00:04.3]} 46... Kg6 {[%clk
0:00:06.4]} 47. Rd6 {[%clk 0:00:02.5]} 47... Rb1 {[%clk 0:00:05]} 48. h4 {[%clk
0:00:02.4]} 48... Rxb5 {[%clk 0:00:04.7]} 49. Rd7 {[%clk 0:00:01.8]} 49... h5
{[%clk 0:00:04.5]} 0-1

[Event "*** Titled Tuesday Blitz"]
[Site "Chess.com"]
[Date "2021.02.16"]
[Round "6"]
[White "SophieNikoladze"]
[Black "Walter_White_Poland"]
[Result "0-1"]
[WhiteElo "2184"]
[BlackElo "2355"]
[TimeControl "180+1"]
[EndTime "11:09:05 PST"]
[Termination "Walter_White_Poland won by resignation"]

1. d4 {[%clk 0:01:35.2]} 1... Nf6 {[%clk 0:02:58.1]} 2. Nf3 {[%clk 0:01:35.6]}
2... c5 {[%clk 0:02:57.6]} 3. e3 {[%clk 0:01:35.6]} 3... d5 {[%clk 0:02:57]} 4.
b3 {[%clk 0:01:33.4]} 4... cxd4 {[%clk 0:02:56]} 5. exd4 {[%clk 0:01:31.9]} 5...
Nc6 {[%clk 0:02:55.8]} 6. Bb2 {[%clk 0:01:32.2]} 6... Bg4 {[%clk 0:02:55.4]} 7.
Nbd2 {[%clk 0:01:32.3]} 7... e6 {[%clk 0:02:55.3]} 8. a3 {[%clk 0:01:32.6]} 8...
Be7 {[%clk 0:02:54.2]} 9. h3 {[%clk 0:01:33.1]} 9... Bxf3 {[%clk 0:02:53.6]} 10.
Qxf3 {[%clk 0:01:30.9]} 10... O-O {[%clk 0:02:54.1]} 11. Bd3 {[%clk 0:01:31]}
11... a6 {[%clk 0:02:53.2]} 12. O-O {[%clk 0:01:31.1]} 12... b5 {[%clk 0:02:53]}
13. g3 {[%clk 0:01:29.5]} 13... Qb6 {[%clk 0:02:45.6]} 14. Qf4 {[%clk
0:01:08.3]} 14... h6 {[%clk 0:02:36]} 15. Nf3 {[%clk 0:01:05.6]} 15... a5 {[%clk
0:02:16]} 16. g4 {[%clk 0:01:01.7]} 16... Nh7 {[%clk 0:02:05.6]} 17. h4 {[%clk
0:01:00.7]} 17... b4 {[%clk 0:01:55.4]} 18. g5 {[%clk 0:00:52.9]} 18... h5
{[%clk 0:01:38.9]} 19. Ne5 {[%clk 0:00:48.9]} 19... Nxe5 {[%clk 0:01:34]} 20.
dxe5 {[%clk 0:00:48.7]} 20... g6 {[%clk 0:01:27.3]} 21. Qg3 {[%clk 0:00:47.7]}
21... Rfc8 {[%clk 0:01:14.6]} 22. Kg2 {[%clk 0:00:45.3]} 22... Nf8 {[%clk
0:01:13.1]} 23. f4 {[%clk 0:00:44.1]} 23... Nd7 {[%clk 0:01:03.2]} 24. a4 {[%clk
0:00:39.1]} 24... Nc5 {[%clk 0:00:59]} 25. Rf2 {[%clk 0:00:38.5]} 25... Nxd3
{[%clk 0:00:57.3]} 26. cxd3 {[%clk 0:00:38.4]} 26... Rc6 {[%clk 0:00:49.6]} 27.
Qf3 {[%clk 0:00:24.8]} 27... Rac8 {[%clk 0:00:49]} 28. f5 {[%clk 0:00:23.9]}
28... exf5 {[%clk 0:00:46.4]} 29. Qxd5 {[%clk 0:00:23.9]} 29... Rc2 {[%clk
0:00:43.9]} 30. Bd4 {[%clk 0:00:21.4]} 30... Rxf2+ {[%clk 0:00:41.9]} 31. Bxf2
{[%clk 0:00:19.7]} 31... Rc2 {[%clk 0:00:41.3]} 32. d4 {[%clk 0:00:19.7]} 32...
Qe6 {[%clk 0:00:30.3]} 33. Qa8+ {[%clk 0:00:19.5]} 33... Kh7 {[%clk 0:00:28.2]}
34. Re1 {[%clk 0:00:15.9]} 34... Qxb3 {[%clk 0:00:26.2]} 35. Qe8 {[%clk
0:00:14.6]} 35... Qa2 {[%clk 0:00:24.4]} 36. Rf1 {[%clk 0:00:12.3]} 36... Qe6
{[%clk 0:00:20.2]} 37. Qb5 {[%clk 0:00:10.7]} 37... f4 {[%clk 0:00:11.6]} 38.
Qd3 {[%clk 0:00:09.9]} 38... Qg4+ {[%clk 0:00:11.2]} 39. Kh1 {[%clk 0:00:09.7]}
39... Re2 {[%clk 0:00:10.3]} 40. Qb3 {[%clk 0:00:09.2]} 40... f3 {[%clk
0:00:09.1]} 41. Qxf7+ {[%clk 0:00:08.8]} 41... Kh8 {[%clk 0:00:09.2]} 42. Qe8+
{[%clk 0:00:08.7]} 42... Kh7 {[%clk 0:00:09.4]} 43. Qxe7+ {[%clk 0:00:09.1]}
43... Kg8 {[%clk 0:00:09.2]} 44. Qe8+ {[%clk 0:00:09.1]} 44... Kg7 {[%clk
0:00:09.6]} 45. Qe7+ {[%clk 0:00:09.1]} 45... Kg8 {[%clk 0:00:09.9]} 46. Qd8+
{[%clk 0:00:09]} 46... Kg7 {[%clk 0:00:10.3]} 47. Qf6+ {[%clk 0:00:09.1]} 47...
Kh7 {[%clk 0:00:10.5]} 48. Qf7+ {[%clk 0:00:09.2]} 48... Kh8 {[%clk 0:00:11]}
49. Qf8+ {[%clk 0:00:09]} 49... Kh7 {[%clk 0:00:11.3]} 50. Qh6+ {[%clk
0:00:09.3]} 50... Kg8 {[%clk 0:00:11.4]} 51. Qxg6+ {[%clk 0:00:09.8]} 51... Kh8
{[%clk 0:00:11.9]} 52. Qf6+ {[%clk 0:00:09.7]} 52... Kg8 {[%clk 0:00:12.4]} 53.
Qd8+ {[%clk 0:00:09]} 53... Kg7 {[%clk 0:00:12.5]} 54. Qd7+ {[%clk 0:00:09.2]}
54... Qxd7 {[%clk 0:00:11.4]} 0-1